Cogmind - Beta 10 @@@ ROGUE MODE // 2020.09.17 @ 09:11:31 Player: OccultOnion Result: Destroyed by G-34 Mercenary with Small Laser Performance ------------- Evolutions (1) 500 Regions Visited (2) 400 Robots Destroyed (26) 130 Value Destroyed (477) 477 Prototype IDs (0) 0 Alien Tech Used (0) 0 Bonus (0) 0 TOTAL SCORE: 1507 Bonus ------- None Cogmind --------- Core Integrity 0/400 Matter 267/300 Energy 62/100 System Corruption 0% Temperature Cool (6) Movement Hovering (140) Ox1 Location -9/Materials Parts ------- > --- POWER (1) -------- (None) > --- PROPULSION (3) --- Light Treads Hover Unit > --- UTILITY (3) ------ Large Storage Unit Weight Redist. System Seismic Analyzer > --- WEAPON (2) ------- Mace > --- INVENTORY (10) --- Small Storage Unit Small Storage Unit Transport Network Coupler Medium Laser Small Laser Light Assault Rifle Autogun Peak State ------------ > --- POWER ------------ Ion Engine > --- PROPULSION ------- Aluminum Leg Hover Unit Improved Hover Unit > --- UTILITY ---------- Large Storage Unit Improved Terrain Scanner Seismic Analyzer > --- WEAPON ----------- Light EM Pulse Cannon Heavy Assault Rifle > --- INVENTORY -------- Light Treads Small Storage Unit Small Storage Unit Weight Redist. System Transport Network Coupler Medium Laser Beam Rifle Autogun [Rating: 14] Favorites ----------- Power Light Ion Engine Engine Light Ion Engine Propulsion Aluminum Leg Treads Light Treads Leg Aluminum Leg Hover Unit Improved Hover Unit Utility Large Storage Unit Device Improved Terrain Scanner Storage Large Storage Unit Processor Seismic Analyzer Weapon Light Assault Rifle Energy Gun EM Pulse Gun Energy Cannon Light EM Pulse Cannon Ballistic Gun Light Assault Rifle Impact Weapon Mace Build | -11 -10 -9 ------- Run | Scr Mat Mat Slots Evolved 2 | . . 2 Power . | . . . Propulsion 1 | . . 1 Utility 1 | . . 1 Weapon . | . . . Parts Attached 25 | 1 9 15 Power 2 | . 1 1 Engine 2 | . 1 1 Core . | . . . Reactor . | . . . Propulsion 12 | . 5 7 Treads 2 | . 1 1 Leg 3 | . 2 1 Wheel . | . . . Hover 7 | . 2 5 Flight . | . . . Utility 5 | 1 1 3 Device 2 | . . 2 Storage 2 | 1 1 . Processor 1 | . . 1 Hackware . | . . . Protection . | . . . Artifact . | . . . Weapon 6 | . 2 4 Energy Gun 2 | . 1 1 Energy Cannon 1 | . . 1 Ballistic Gun 2 | . 1 1 Ballistic Cannon . | . . . Launcher . | . . . Special Weapon . | . . . Impact Weapon 1 | . . 1 Slashing Weapon . | . . . Piercing Weapon . | . . . Special Melee Weapon . | . . . Unidentified Prototypes . | . . . Parts Lost 19 | . 4 15 Power 3 | . 1 2 Propulsion 8 | . 1 7 Utility 1 | . . 1 Weapon 7 | . 2 5 Highest Loss Streak 4 | . 4 4 Average Slot Usage (%) 88 | . 97 81 Engine 9 | . 14 6 Treads 1 | . 2 . Leg 17 | . 20 16 Hover 7 | . 4 8 Device 4 | . . 7 Storage 18 | . 28 11 Processor 6 | . . 10 Energy Gun 7 | . 13 3 Energy Cannon 2 | . . 4 Ballistic Gun 10 | . 13 9 Impact Weapon 1 | . . 2 Naked Turns . | . . . Heaviest Build 29 | 14 26 29 Greatest Support 30 | 20 20 30 Greatest Overweight (x) 5 | . 3 5 Average Overweight (x) . | . . . Largest Inventory Capacity 12 | 8 12 12 Average Capacity 9 | 7 10 10 Most Carried 11 | 8 11 10 Average Carried 8 | 6 8 9 Final Capacity 12 | 8 12 10 Final Carried 11 | 8 11 7 Class Distribution -------------------- 61% | Mutant 38% | Scavenger-Mutant Dominant Class ---------------- Mutant | -10/Materials Scavenger-Mutant | -9/Materials Resources | -11 -10 -9 ----------- Run | Scr Mat Mat Matter Collected 449 | 217 62 170 Remotely . | . . . Salvage Created 911 | 134 216 561 Parts 68 | 8 20 40 Haulers Intercepted 2 | . . 2 Recyclers Shooed 1 | . . 1 Parts Field Recycled . | . . . Retrieved Matter . | . . . Parts Self-Destructed . | . . . Prevented . | . . . Kills | -11 -10 -9 ------- Run | Scr Mat Mat Combat Hostiles Destroyed 16 | . 8 8 Guns 14 | . 8 6 Cannons 2 | . . 2 Classes Destroyed 9 | 2 2 5 Worker 1 | . . 1 Tunneler 3 | 3 . . Hauler 2 | . . 2 Recycler 2 | 1 . 1 Operator 1 | . . 1 Watcher 1 | . . 1 Swarmer 8 | . 5 3 Grunt 3 | . 3 . Sentry 5 | . . 5 Best Kill Streak 6 | 2 6 5 Combat Bots Only 6 | . 6 3 Max Kills in Single Turn 1 | 1 1 1 Gunslinging . | . . . Exploded . | . . . Melee . | . . . Uniques/NPCs Destroyed . | . . . Combat | -11 -10 -9 -------- Run | Scr Mat Mat Damage Taken 1863 | . 566 1297 Core 522 | . 113 409 Absorbed by Shields . | . . . Core Remaining (%) 77 | 100 54 . Volleys Fired 82 | 7 29 46 Largest 2 | 2 2 2 Hottest 79 | 60 60 79 Shots Fired 137 | 14 51 72 Gun 121 | 14 51 56 Cannon 16 | . . 16 Launcher . | . . . Special . | . . . Kinetic 75 | 7 22 46 Thermal 9 | . . 9 Explosive . | . . . Electromagnetic 53 | 7 29 17 Robot Hit Streak 12 | 4 9 12 Robot Miss Streak 4 | 1 4 3 Penetration Max . | . . . Secondary Targets 1 | . . 1 Max Gunslinging Chain 1 | . . 1 Shots Hit Robots 91 | 10 29 52 Core Hits 34 | 5 11 18 Critical Hits 2 | . 1 1 Critical Kills 2 | . 1 1 Critical Parts Destroyed . | . . . Melee Attacks 2 | . . 2 Impact 2 | . . 2 Slashing . | . . . Piercing . | . . . Sneak Attacks 1 | . . 1 Combat Hostiles . | . . . Follow-up Attacks . | . . . Damage Inflicted 1227 | 153 313 761 Guns 825 | 121 313 391 Cannons 312 | . . 312 Explosions 32 | 32 . . Melee 54 | . . 54 Ramming 4 | . . 4 Kinetic 421 | 24 85 312 Thermal 89 | 32 . 57 Explosive . | . . . Electromagnetic 659 | 97 228 334 Impact 54 | . . 54 Slashing . | . . . Piercing . | . . . Highest Corruption . | . . . Average Corruption . | . . . Corruption Purged . | . . . Overload Shots . | . . . Overflow Damage . | . . . Projectiles . | . . . Explosions . | . . . Melee . | . . . Knockbacks . | . . . Impact . | . . . Kinetic . | . . . Secondary . | . . . Self-Inflicted Damage 2 | . . 2 Shots . | . . . Rammed 1 | . . 1 Targets Rammed 1 | . . 1 Kicked . | . . . Crushed . | . . . Highest Temperature 135 | 40 135 70 Average Temperature 30 | 19 40 22 Received Heat Transfer 603 | . 132 471 Siege Activations . | . . . Robots Corrupted 2 | . . 2 Combat Hostiles . | . . . Parts Fried 3 | . . 3 Impact Corruptions . | . . . Robots Melted . | . . . Combat Hostiles . | . . . Parts Melted 1 | . . 1 Heat Transferred 198 | 50 . 148 Parts Sabotaged . | . . . Parts Stolen . | . . . Parts Stripped . | . . . Power Chain Reactions 1 | 1 . . Missiles Intercepted . | . . . Alert | -11 -10 -9 ------- Run | Scr Mat Mat Peak Influence 244 | 20 170 244 Initial 13 | . 13 5 Average 87 | 14 101 90 Maximum Alert Level 1 | . . 1 Low Security (%) 97 | 100 100 94 Level 1 2 | . . 5 Level 2 . | . . . Level 3 . | . . . Level 4 . | . . . Level 5 . | . . . High Security . | . . . Max Security . | . . . Squads Dispatched 9 | . 4 5 Investigation 2 | . 1 1 Extermination . | . . . Reinforcement 7 | . 3 4 Assault . | . . . Garrison . | . . . Intercept . | . . . Construction Impeded . | . . . Haulers Reinforced . | . . . Stealth | -11 -10 -9 --------- Run | Scr Mat Mat Distress Signals 3 | . 2 1 Communications Jammed . | . . . Distress Signals . | . . . Times Spotted 41 | . 18 23 Peak Tracking Total 8 | . 8 6 Tactical Retreats 1 | . 1 . Traps | -11 -10 -9 ------- Run | Scr Mat Mat Traps Triggered . | . . . Indirectly . | . . . Trap Hack Attempts . | . . . Triggered . | . . . Disarmed . | . . . Reprogrammed . | . . . Reused . | . . . Traps Extracted . | . . . Installed . | . . . Triggered 1 | . 1 . Machines | -11 -10 -9 ---------- Run | Scr Mat Mat Machines Disabled . | . . . Max in Single Turn . | . . . Machines Sabotaged . | . . . Garrisons Compromised . | . . . Overloaded Fab Kills . | . . . Fab Network Shutdowns . | . . . Hacking | -11 -10 -9 --------- Run | Scr Mat Mat Machines Accessed 7 | . 2 5 Terminals 6 | . 2 4 Fabricators . | . . . Repair Stations . | . . . Recycling Units . | . . . Scanalyzers 1 | . . 1 Garrison Access . | . . . Total Hacks 20 | . 5 15 Successful 13 | . 5 8 Failed 7 | . . 7 Catastrophic . | . . . Database Lockouts . | . . . Manual 13 | . 3 10 Terminals 19 | . 5 14 Fabricators . | . . . Repair Stations . | . . . Recycling Units . | . . . Scanalyzers 1 | . . 1 Garrison Access . | . . . Terminal Hacks 7 | . 3 4 Robot Analysis 1 | . . 1 Emergency Access Points 1 | . . 1 Alert Level 1 | . 1 . Unreport Threat 1 | . 1 . Recall Reinforcements 1 | . . 1 Hauler Manifests 1 | . . 1 Zone Layout 1 | . 1 . Fabricator Hacks . | . . . Repair Station Hacks . | . . . Recycling Unit Hacks . | . . . Scanalyzer . | . . . Garrison Access Hacks . | . . . Unauthorized Hacks 6 | . 2 4 Terminals 5 | . 2 3 Botnet 5 | . 2 3 Fabricators . | . . . Repair Stations . | . . . Recycling Units . | . . . Scanalyzers 1 | . . 1 Extract 1 | . . 1 Garrison Access . | . . . Data Cores Recovered . | . . . Used . | . . . Hacking Detections 5 | . 1 4 Full Trace Events 1 | . . 1 Feedback Events . | . . . Feedback Blocked . | . . . Robot Schematics Acquired . | . . . Robots Built . | . . . Matter . | . . . Time . | . . . Total Robot Build Rating . | . . . Part Schematics Acquired 3 | . . 3 Parts Built . | . . . Matter . | . . . Time . | . . . Total Part Build Rating . | . . . Parts Repaired . | . . . Time . | . . . Parts Recycled . | . . . Recycled Matter . | . . . Retrieved Matter . | . . . Retrieved Components . | . . . Parts Scanalyzed . | . . . Part Schematics Acquired . | . . . Parts Damaged . | . . . Bothacking | -11 -10 -9 ------------ Run | Scr Mat Mat Used RIF Installer . | . . . Robots Hacked . | . . . Non-combat . | . . . Combat . | . . . Robot Hacks Applied . | . . . Relay Couplers Released . | . . . Robots Rewired . | . . . Allies Hacked . | . . . Hacks Repelled . | . . . Allies | -11 -10 -9 -------- Run | Scr Mat Mat Total Allies . | . . . Largest Group . | . . . Highest-Rated Group . | . . . Highest-Rated Ally . | . . . Total Orders . | . . . Ally Attacks . | . . . Total Damage . | . . . Kills . | . . . Allies Corrupted . | . . . Allies Melted . | . . . Intel | -11 -10 -9 ------- Run | Scr Mat Mat Robot Analysis Total 1 | . . 1 Derelict Logs Recovered . | . . . Drone Launches . | . . . Drone Recoveries . | . . . Exploration | -11 -10 -9 ------------- Run | Scr Mat Mat Turns Passed 1166 | 112 436 618 Spaces Moved 585 | 38 238 309 Core 1 | . . 1 Treads . | . . . Legs 379 | 38 182 159 Wheels . | . . . Hover 205 | . 56 149 Flight . | . . . Fastest Speed 56 | 120 56 116 Average Speed 140 | 120 134 147 Slowest Speed 300 | 120 260 300 Overloaded Moves . | . . . Propulsion Burnouts . | . . . Robots Hopped . | . . . Cave-ins Triggered . | . . . Exploration Rate (%) 30 | 4 39 48 Regions Visited 2 Branch Regions . Pre-discovered Areas . | . . . Known Exits Taken . | . . . Unknown Exits Taken 2 | 1 1 . Scrap Searched . | . . . Spaces Dug 1 | . . 1 Terrain Destroyed 3 | 2 . 1 Melee 1 | . . 1 Projectile . | . . . AOE 2 | 2 . . Terrain Rammed . | . . . Walls Destroyed . | . . . Machines Disabled . | . . . Actions | -11 -10 -9 --------- Run | Scr Mat Mat Total 802 | 92 306 404 Wait 71 | 42 16 13 Move 583 | 37 237 309 Hop . | . . . Pick Up 29 | 4 11 14 Fast Attach . | . . . Attach 19 | 1 4 14 Detach . | . . . Swap 6 | . 5 1 Drop 9 | 1 4 4 Fire 82 | 7 29 46 Melee 2 | . . 2 Ram 1 | . . 1 Kick . | . . . Crush . | . . . Escape Stasis . | . . . Rewire . | . . . Trap . | . . . Miscellaneous . | . . . Route ------- -11/Scrapyard -10/Materials -9/Materials (discovered 2 exits: [*Mat] / [*Min]) History --------- Turn | Location | Event 1 | -11/Scrapyard | Discovered new exit (range 2) 113 | -11/Scrapyard | Entered Materials 263 | -10/Materials | Lost 4 parts (1p1n2w) 315 | -10/Materials | Build established: Mutant 544 | -10/Materials | Discovered new exit (range 3) 549 | -10/Materials | Entered another Materials area 549 | -9/Materials | Evolved 2 slots: Propulsion x1, Utility x1 755 | -9/Materials | Discovered new exit (range 15) 861 | -9/Materials | Build established: Scavenger-Mutant 870 | -9/Materials | Lost 4 parts (1p2n1w) 1027 | -9/Materials | Lost 4 parts (2n1u1w) 1079 | -9/Materials | Core integrity fell below 50% 1114 | -9/Materials | Core integrity fell below 20% 1138 | -9/Materials | Lost 3 parts (2n1w) 1165 | -9/Materials | Discovered new exit (range 15) 1167 | -9/Materials | Destroyed by G-34 Mercenary with Small Laser Last Messages --------------- EXTRACTED[Imp. Hover Unit] 01006_ ALERT: Suspicious activity at Scanalyzer M002. Dispatching Investigation squad. 01013_ Dropped Sml. Laser. 01014_ Acquired Mace. 01017_ Acquired Sml. Laser. 01071_ Imp. Hover Unit destroyed. 01077_ Hvy. Assault Rifle destroyed. 01107_ Hover Unit destroyed. 01110_ Acquired Imp. Hover Unit. 01116_ Sneak attack on K-01 Serf. 01116_ K-01 Serf destroyed. 01120_ Acquired 30 matter. 01139_ O-16 Technician uses terminal to summon reinforcements. 01139_ ALERT: Hostiles spotted, dispatching reinforcements to Terminal M008. 01139_ O-16 Technician locks terminal. 01146_ Acquired Hover Unit. 01149_ Imp. Hover Unit destroyed. 01165_ EXIT=FOUND Map ----- +----------------------------------------------------+ | ??????????????????????????????????? | | ??????????????????????????????????? | | ??????????????????????????????????????? | | ??????????????????????????????????????? | | ????????????????????????????????????? ? | | ??????????????????????????????????????? | | ??????????????????????????????????????? | | ??????????????????????????????????????? | | ??????????????????????????????????????? | | ????????????????????????????#?????????? | | ??????????????????????????? #?????????? | | ??????????????????????????? ###???????? | | ??????????????????????????? ???????? | | ??????????????????????????? ????????? | | ?????????????????????????? """??????? | | ?????????????????????????? ""??????#? | | ?????????????????????????? "???????# | | ?????????????????????????? ???????? | | ????????????????????????? ???????? | | ??????????##+#??????????? ?????????? | | ??????????? ??????????? ????#????#? | | ???????????# ??????#####+#####???????# | | ???????????# ####### #???????# | | ???????????# / " ##??????+ | | ???????????# ###### T """ #???????# | | ???????????# @#????# " """ #???????# | | ???????????# #????# """ #???????# | | ???????????+ #????# #???? ? # | | ???????????# g #????#######"###???#???# | | ???????????# #????# ##????????# | | ???????????#g #????# #??????#?## | | ???????????# #????# / ########### | | ???????????# #????# # | | ???????????# #????# # | | ???????????# ?????# += | | ???????????# ?????# ! ! # | | ???????????+ ?????# # | | ???????????# k?????# # | | ???????????# < ?????# # | | ???????????# ?????# # ! | | ????????????###?????######### """ | | ????????????????????????????# """"" | | ????????????????????????????# """"" | | ???????????????????????????## """"" | | ???????????????????????????## """ | | ????????????????????????????# | | ????????????????????????????# | | ????????????????????????????########### | | ???????????????????????????#????????## | | ?????????????????????????????#??#?#??# | +----------------------------------------------------+ Best States ------------- Heat Dissipation 28 Energy Generation 10 Energy Capacity 250 Matter Stores 300 Matter Capacity 300 Sight Range 16 Terrain Scan Range 16 Terrain Scan Density 60 Evasion (%) 53 Item Schematics ----------------- Structural Scanner | -9/Materials | Extracted Lrg. Storage Unit | -9/Materials | Extracted Imp. Hover Unit | -9/Materials | Extracted Robot Schematics ------------------ None Fabricated ------------ Nothing Alien Tech Used ----------------- None Achievements -------------- Brute Force Challenges ------------ None Game ------ Seed MiniArchitectKatana Manual? 0 Play Time 00:13:14 Cumulative 65.6 hours Start 2020.09.17 @ 08:58:27 End 2020.09.17 @ 09:11:31 Sessions 1 Manual Loads 0 Difficulty Rogue Special Mode None Game No. 152 Rogue 152 Adventurer 0 Explorer 0 Win Type - Total 0 Types 0/0/0/0/0/0/0/0/0 Lore% 30 Gallery% 50 Achievement% 33 Wizard Run 0 Options --------- ASCII 0 Keyboard 1 Movement Numpad Keybinds 0 Fullscreen 2 Font 18/SmallcapsGlow Map View 76x50 Tactical HUD 1 Map Filters NONE Filters NONE Steam 1 RUN: bd4a30f5-36f6-4cfd-9138-52314f1a741a